{"text_format":"3","workbook":"xlsx","n_sheets":1,"sheets":["Sheet1"],"read":"whole","date_system":"1900"}

{"sheet":"Sheet1","index":0,"n_rows":69,"n_cols":6,"rows_kept":69,"merged":[[0,0,0,5],[1,0,1,1],[1,2,1,3],[2,0,2,5],[3,0,3,5],[4,0,4,5],[5,0,5,5],[6,0,7,0],[6,2,7,2],[6,3,7,3]]}
["24-DES-ITB-217 - ATTACHMENT A - PRICE SCHEDULE"]
["NAME OF BIDDER: "]
["DEMOLITION PROJECT WORK CATEGORY"]
["Capital Improvement Project Work shall consist generally of larger scale public works infrastructure and street improvement projects including construction, re-construction, and maintenance of:  State and County streets, curbs & gutters, sidewalks, walkways, driveway aprons, sanitary sewer pipes and structures, water mains, storm sewer pipes and inlets, pavement markings and signage, traffic signals, streetlights, streetscapes and related site work."]
["PLEASE PROVIDE PRICES FOR ALL ITEMS LISTED"]
["All Unit Prices on the Bid Form shall reflect and be inclusive of all costs, including but not limited to:  tasks, labor, supplies, tools, equipment, transportation, mobilization, clearing and grubbing, demolition, saw-cutting, material provisions and installations, disposals, incidentals, and all things necessary to perform the work as set forth in accordance with project plans and specifications and in compliance with all Arlington County Standards and Specifications."]
["Item No.","   DESCRIPTION","TOTAL ESTIMATED ANNUAL QUANTITY \n(TEQ)","UNIT","UNIT PRICE \n(UP)\n","TOTAL PRICE \n\n  "]
[{"$nulls":5},"BASE BID WORK"]
[]
[null,"SITE CLEARING, REMOVAL, GRADING"]
[1,"Site Clearning of property- schrubs, etc.",1,"SF",null,{"$f":"IF(ISBLANK($E11),\"\",$C11*$E11)","v":""}]
[2,"Removal and dispoal of chain link and wood fencing",1,"LF",null,{"$f":"IF(ISBLANK($E12),\"\",$C12*$E12)","v":""}]
[3,"Site Clearing Trees removal (4\" to 6\" diameter)",1,"EA",null,""]
[4,"Site Clearing Trees removal (8\" to 12\" diameter)",1,"EA",null,""]
[5,"Site Clearing Trees removal (14\" to 24\" diameter)",1,"EA",null,""]
[6,"Site Clearing Trees removal (26\" to 36\" diameter)",1,"EA",null,""]
[7,"Site Clearing Trees removal (37>\" diameter)",1,"EA",null,""]
[8,"Removal-cleaning-disposal & fill for underground tank",1,"Gallon",null,{"$f":"IF(ISBLANK($E18),\"\",$C18*$E18)","v":""}]
[9,"Removal-cleaning-disposal & fill for above ground tank",1,"Gallon",null,""]
[10,"Topsoil remove / stockpile on site (6\" deep)",1,"SF",null,""]
[11,"Removal of Waste, Junk, Materials found in dwelling or around property",1,"CY",null,""]
[12,"Site Grading per 1,000 SF",1,"EA",null,""]
[null,"EXTERIOR HARDSCAPE & APPENDAGES"]
[18,"Removal & disposal of concrete driveways",1,"CY",null,""]
[19,"Removal & disposal of asphalt driveways",1,"CY",null,""]
[20,"Chimney removal -1st Floor",1,"EA",null,""]
[21,"Chimney removal -2nd Floor",1,"EA",null,""]
[22,"Chimney removal -3rd Floor",1,"EA",null,""]
[23,"Detached Garage (incl'd footing and slab)",1,"SF",null,""]
[24,"Inground swimming pool",1,"EA",null,""]
[25,"Above ground swimming pool",1,"EA",null,""]
[26,"Hand Labor to dismantle sheds/portion of building not accessile with equipment",1,"Per hour",null,""]
[null,"HAZMAT ABATEMENT & DISPOSAL(Hazmat report & monitoring  by Arlington County)"]
[27,"Dig-haul & treatment of contaminated petroleum soils",1,"Ton",null,""]
[28,"Asbestos Containment Area -Abatement Demolition, Removal only",1,"SF",null,""]
[29,"Other hazardous material",1,"SF",null,""]
[null,"BUILDING DEMOLITION"]
[30,"Residential 3-story (Wooden Structure without hazardous material) Demolition",1,"SF",null,{"$f":"IF(ISBLANK($E38),\"\",$C38*$E38)","v":""}]
[31,"Residential 3-story (Masonary Structure without hazardous material) Demolition",1,"SF",null,{"$f":"IF(ISBLANK($E39),\"\",$C39*$E39)","v":""}]
[32,"Residential 3-story(Wooden Structure with hazardous material) Demolition",1,"SF",null,""]
[33,"Residential 3-story(Masonary Structure with hazardous material)Demolition",1,"SF",null,""]
[34,"Residential 2-story (Wooden Structure without hazardous material) Demolition",1,"SF",null,""]
[35,"Residential 2-story (Masonary Structure without hazardous material) Demolition",1,"SF",null,""]
[36,"Residential 2-story(Wooden Structure with hazardous material) Demolition",1,"SF",null,""]
[37,"Residential 2-story(Masonary Structure with hazardous material)Demolition",1,"SF",null,""]
[38,"Residential 1-story (Wooden Structure without hazardous material) Demolition",1,"SF",null,""]
[39,"Residential 1-story (Masonary Structure without hazardous material) Demolition",1,"SF",null,""]
[40,"Residential 1-story(Wooden Structure with hazardous material) Demolition",1,"SF",null,""]
[41,"Residential 1-story(Masonary Structure with hazardous material)Demolition",1,"SF",null,""]
[42,"Dwelling Basement (Masonary Structure with hazardous material)Demolition",1,"SF",null,""]
[43,"Dwelling Basement (Masonary Structure without hazardous material)Demolition",1,"SF",null,""]
[null,"SUB-STRUCTURE"]
[44,"Concrete Slab on-grade",1,"SF",null,{"$f":"IF(ISBLANK($E53),\"\",$C53*$E53)","v":""}]
[45,"Dwelling foundation walls & footings demolition",1,"SF",null,{"$f":"IF(ISBLANK($E54),\"\",$C54*$E54)","v":""}]
[null,"CONSTRUCTION DEBRIS HAULING & DISPOSAL"]
[46,"Removal / Hauling of Construction Material",1,"CY",null,{"$f":"IF(ISBLANK($E56),\"\",$C56*$E56)","v":""}]
[47,"Demolition Disposal of Material",1,"CY",null,{"$f":"IF(ISBLANK($E57),\"\",$C57*$E57)","v":""}]
[48,"Demolition Septic tank and related components",1,"EA",null,""]
[null,"SITEWORK"]
[49,"Backfill  adding (heavy soil, Compaction in 6\" layers - compaction)",1,"CF",null,{"$f":"IF(ISBLANK($E60),\"\",$C60*$E60)","v":""}]
[51,"Backfill - Using stockpile (heavy soil, Compaction in 6\" layers - compaction)",1,"CF",null,{"$f":"IF(ISBLANK($E61),\"\",$C61*$E61)","v":""}]
[53,"Backfill - adding  (top soil - 6\" layer)",1,"CF",null,""]
[55,"Backfill - Using stockpile  (top soil - 6\"layer)",1,"CF",null,""]
[57,"Soil Hauling (incl. load, travel, unload or dump)",1,"CY",null,""]
[58,"Planting  grass seeds on site after demolition (maintain untill grass is establish)",1,"SF",null,""]
[59,"Planting  grass sod on site after demolition (maintain untill grass is establish)",1,"SF",null,""]
[]
[]
[null,"TOTAL",null,null,{"$f":"SUM(E11:E68)","v":{"v":0,"d":"$0.00"}},{"$f":"SUM(F11:F66)","v":{"v":0,"d":"$0.00"}}]